{"text_format":"3","workbook":"xlsx","n_sheets":1,"sheets":["Nákupní seznam"],"not_rendered":{"images":1,"defined_names":3},"read":"whole","date_system":"1900"}

{"sheet":"Nákupní seznam","index":0,"n_rows":31,"n_cols":8,"rows_kept":31,"merged":[[1,1,1,2]]}
[null,"Nákupní seznam"]
[null,"DATUM"]
[null,"Hotovo?","Zboží","Kategorie","Množství","Cena","Rozšířená cena","Značka/komentáře"]
[null,null,"Pomeranče","Plodiny",null,null,{"$f":"IFERROR(SUM(NákupníSeznam[Množství]*NákupníSeznam[Cena]), \"\")","v":{"v":0,"d":"0.00 Kč"}}]
[null,null,"Jablka","Plodiny",null,null,{"$f":"IFERROR(SUM(NákupníSeznam[Množství]*NákupníSeznam[Cena]), \"\")","v":{"v":0,"d":"0.00 Kč"}}]
[null,null,"Banány","Plodiny",null,null,{"$f":"IFERROR(SUM(NákupníSeznam[Množství]*NákupníSeznam[Cena]), \"\")","v":{"v":0,"d":"0.00 Kč"}}]
[null,null,"Hlávkový salát","Plodiny",null,null,{"$f":"IFERROR(SUM(NákupníSeznam[Množství]*NákupníSeznam[Cena]), \"\")","v":{"v":0,"d":"0.00 Kč"}}]
[null,null,"Rajčata","Plodiny",null,null,{"$f":"IFERROR(SUM(NákupníSeznam[Množství]*NákupníSeznam[Cena]), \"\")","v":{"v":0,"d":"0.00 Kč"}},"  "]
[null,null,"Mléko ","Mléčné výrobky",null,null,{"$f":"IFERROR(SUM(NákupníSeznam[Množství]*NákupníSeznam[Cena]), \"\")","v":{"v":0,"d":"0.00 Kč"}}]
[null,null,"Sýr","Mléčné výrobky",null,null,{"$f":"IFERROR(SUM(NákupníSeznam[Množství]*NákupníSeznam[Cena]), \"\")","v":{"v":0,"d":"0.00 Kč"}}]
[null,null,"Vejce","Mléčné výrobky",null,null,{"$f":"IFERROR(SUM(NákupníSeznam[Množství]*NákupníSeznam[Cena]), \"\")","v":{"v":0,"d":"0.00 Kč"}}]
[null,null,"Tvaroh","Mléčné výrobky",null,null,{"$f":"IFERROR(SUM(NákupníSeznam[Množství]*NákupníSeznam[Cena]), \"\")","v":{"v":0,"d":"0.00 Kč"}}]
[null,null,"Hovězí maso","Maso",null,null,{"$f":"IFERROR(SUM(NákupníSeznam[Množství]*NákupníSeznam[Cena]), \"\")","v":{"v":0,"d":"0.00 Kč"}}]
[null,null,"Drůbeží maso","Maso",null,null,{"$f":"IFERROR(SUM(NákupníSeznam[Množství]*NákupníSeznam[Cena]), \"\")","v":{"v":0,"d":"0.00 Kč"}}]
[null,null,"Šunka","Maso",null,null,{"$f":"IFERROR(SUM(NákupníSeznam[Množství]*NákupníSeznam[Cena]), \"\")","v":{"v":0,"d":"0.00 Kč"}}]
[null,null,"Džus","Nápoje",null,null,{"$f":"IFERROR(SUM(NákupníSeznam[Množství]*NákupníSeznam[Cena]), \"\")","v":{"v":0,"d":"0.00 Kč"}}]
[null,null,"Káva","Nápoje",null,null,{"$f":"IFERROR(SUM(NákupníSeznam[Množství]*NákupníSeznam[Cena]), \"\")","v":{"v":0,"d":"0.00 Kč"}}]
[null,null,"Čaj","Nápoje",null,null,{"$f":"IFERROR(SUM(NákupníSeznam[Množství]*NákupníSeznam[Cena]), \"\")","v":{"v":0,"d":"0.00 Kč"}}]
[null,null,"Voda","Nápoje",null,null,{"$f":"IFERROR(SUM(NákupníSeznam[Množství]*NákupníSeznam[Cena]), \"\")","v":{"v":0,"d":"0.00 Kč"}}]
[null,null,"Nudle","Přílohy",null,null,{"$f":"IFERROR(SUM(NákupníSeznam[Množství]*NákupníSeznam[Cena]), \"\")","v":{"v":0,"d":"0.00 Kč"}}]
[null,null,"Rýže","Přílohy",null,null,{"$f":"IFERROR(SUM(NákupníSeznam[Množství]*NákupníSeznam[Cena]), \"\")","v":{"v":0,"d":"0.00 Kč"}}]
[null,null,"Konzervy","Polévky",null,null,{"$f":"IFERROR(SUM(NákupníSeznam[Množství]*NákupníSeznam[Cena]), \"\")","v":{"v":0,"d":"0.00 Kč"}}]
[null,null,"Suchá směs","Polévky",null,null,{"$f":"IFERROR(SUM(NákupníSeznam[Množství]*NákupníSeznam[Cena]), \"\")","v":{"v":0,"d":"0.00 Kč"}}]
[null,null,"Chléb","Pečivo",null,null,{"$f":"IFERROR(SUM(NákupníSeznam[Množství]*NákupníSeznam[Cena]), \"\")","v":{"v":0,"d":"0.00 Kč"}}]
[null,null,"Brambůrky","Svačina",null,null,{"$f":"IFERROR(SUM(NákupníSeznam[Množství]*NákupníSeznam[Cena]), \"\")","v":{"v":0,"d":"0.00 Kč"}}]
[null,null,"Preclíky","Svačina",null,null,{"$f":"IFERROR(SUM(NákupníSeznam[Množství]*NákupníSeznam[Cena]), \"\")","v":{"v":0,"d":"0.00 Kč"}}]
[null,null,"Zmrzlina","Svačina",null,null,{"$f":"IFERROR(SUM(NákupníSeznam[Množství]*NákupníSeznam[Cena]), \"\")","v":{"v":0,"d":"0.00 Kč"}}]
[null,null,"Sušenky","Svačina",null,null,{"$f":"IFERROR(SUM(NákupníSeznam[Množství]*NákupníSeznam[Cena]), \"\")","v":{"v":0,"d":"0.00 Kč"}}]
[null,null,"Papírové tácky","Zásoby",null,null,{"$f":"IFERROR(SUM(NákupníSeznam[Množství]*NákupníSeznam[Cena]), \"\")","v":{"v":0,"d":"0.00 Kč"}}]
[null,null,"Utěrky","Zásoby",null,null,{"$f":"IFERROR(SUM(NákupníSeznam[Množství]*NákupníSeznam[Cena]), \"\")","v":{"v":0,"d":"0.00 Kč"}}]
[{"$nulls":6},{"$f":"SUBTOTAL(109,NákupníSeznam[Rozšířená cena])","v":{"v":0,"d":"0.00 Kč"}}]